Cogmind - Beta 10.1 @@@ ROGUE MODE // 2020.10.27 @ 21:08:45 Player: Atherys Result: Destroyed by G-47 Trooper with Particle Gun Performance ------------- Evolutions (0) 0 Regions Visited (2) 400 Robots Destroyed (21) 105 Value Destroyed (534) 534 Prototype IDs (0) 0 Alien Tech Used (0) 0 Bonus (0) 0 TOTAL SCORE: 1039 Bonus ------- None Cogmind --------- Core Integrity 0/250 Matter 42/300 Energy 99/100 System Corruption 0% Temperature Cool (9) Movement Core (300) Ox5 Location -10/Mines Parts ------- > --- POWER (1) -------- (None) > --- PROPULSION (2) --- (None) > --- UTILITY (2) ------ Large Storage Unit > --- WEAPON (2) ------- Light Assault Rifle > --- INVENTORY (10) --- Small Storage Unit Peak State ------------ > --- POWER ------------ Ion Engine > --- PROPULSION ------- Light Treads Light Treads > --- UTILITY ---------- Large Storage Unit Structural Scanner > --- WEAPON ----------- Medium Laser Light Assault Rifle > --- INVENTORY -------- Light Ion Engine Small Storage Unit EM Pulse Gun [Rating: 7] Favorites ----------- Power Ion Engine Engine Ion Engine Propulsion Light Treads Treads Light Treads Utility Large Storage Unit Device Structural Scanner Storage Large Storage Unit Weapon Light Assault Rifle Energy Gun EM Pulse Gun Ballistic Gun Light Assault Rifle Launcher Grenade Launcher Build | -11 -10 -10 ------- Run | Scr Mat Min Slots Evolved . | . . . Power . | . . . Propulsion . | . . . Utility . | . . . Weapon . | . . . Parts Attached 13 | 5 4 4 Power 1 | 1 . . Engine 1 | 1 . . Core . | . . . Reactor . | . . . Propulsion 2 | 2 . . Treads 2 | 2 . . Leg . | . . . Wheel . | . . . Hover . | . . . Flight . | . . . Utility 2 | . 2 . Device 1 | . 1 . Storage 1 | . 1 . Processor . | . . . Hackware . | . . . Protection . | . . . Artifact . | . . . Weapon 8 | 2 2 4 Energy Gun 2 | 1 1 . Energy Cannon . | . . . Ballistic Gun 3 | 1 . 2 Ballistic Cannon . | . . . Launcher 3 | . 1 2 Special Weapon . | . . . Impact Weapon . | . . . Slashing Weapon . | . . . Piercing Weapon . | . . . Special Melee Weapon . | . . . Unidentified Prototypes . | . . . Parts Lost 7 | . . 7 Power 1 | . . 1 Propulsion 2 | . . 2 Utility 1 | . . 1 Weapon 3 | . . 3 Highest Loss Streak 7 | . . 7 Average Slot Usage (%) 90 | . 95 79 Engine 12 | . 14 9 Treads 25 | . 28 19 Device 10 | . 10 10 Storage 13 | . 13 14 Energy Gun 9 | . 8 11 Ballistic Gun 11 | . 14 7 Launcher 5 | . 5 6 Naked Turns . | . . . Heaviest Build 27 | 8 26 27 Greatest Support 40 | 40 40 40 Greatest Overweight (x) 6 | 1 . 6 Average Overweight (x) . | . . . Largest Inventory Capacity 10 | 4 10 10 Average Capacity 9 | 4 9 10 Most Carried 4 | 3 4 4 Average Carried 2 | 1 3 2 Final Capacity 10 | 4 10 10 Final Carried 3 | 3 2 1 Class Distribution -------------------- 100% | Mutant Dominant Class ---------------- Mutant | -10/Materials Mutant | -10/Mines Resources | -11 -10 -10 ----------- Run | Scr Mat Min Matter Collected 373 | 127 197 49 Remotely . | . . . Salvage Created 409 | . 360 49 Parts 30 | . 23 7 Haulers Intercepted . | . . . Recyclers Shooed 1 | . 1 . Parts Field Recycled . | . . . Retrieved Matter . | . . . Parts Self-Destructed . | . . . Prevented . | . . . Kills | -11 -10 -10 ------- Run | Scr Mat Min Combat Hostiles Destroyed 14 | . 11 3 Guns 6 | . 4 2 AOE 8 | . 7 1 Classes Destroyed 7 | . 6 1 Worker 1 | . 1 . Builder 3 | . 2 1 Recycler 1 | . 1 . Operator 1 | . 1 . Watcher 1 | . 1 . Swarmer 3 | . . 3 Grunt 11 | . 11 . Best Kill Streak 7 | . 7 4 Combat Bots Only 4 | . 4 3 Max Kills in Single Turn 2 | . 2 1 Gunslinging . | . . . Exploded 1 | . 1 1 Melee . | . . . Uniques/NPCs Destroyed . | . . . Combat | -11 -10 -10 -------- Run | Scr Mat Min Damage Taken 952 | . 500 452 Core 260 | . 79 181 Absorbed by Shields . | . . . Core Remaining (%) 100 | 100 . . Volleys Fired 63 | . 44 19 Largest 2 | . 2 2 Hottest 70 | . 70 70 Shots Fired 117 | . 88 29 Gun 89 | . 62 27 Cannon . | . . . Launcher 28 | . 26 2 Special . | . . . Kinetic 56 | . 44 12 Thermal 12 | . 12 . Explosive 28 | . 26 2 Electromagnetic 21 | . 6 15 Robot Hit Streak 9 | . 9 6 Robot Miss Streak 4 | . 4 4 Penetration Max . | . . . Secondary Targets . | . . . Shots Hit Robots 52 | . 34 18 Core Hits 44 | . 38 6 Critical Hits . | . . . Critical Kills . | . . . Critical Parts Destroyed . | . . . Melee Attacks . | . . . Impact . | . . . Slashing . | . . . Piercing . | . . . Sneak Attacks . | . . . Combat Hostiles . | . . . Follow-up Attacks . | . . . Damage Inflicted 1913 | . 1606 307 Guns 477 | . 308 169 Cannons . | . . . Explosions 1436 | . 1298 138 Melee . | . . . Ramming . | . . . Kinetic 214 | . 155 59 Thermal 99 | . 99 . Explosive 1436 | . 1298 138 Electromagnetic 164 | . 54 110 Impact . | . . . Slashing . | . . . Piercing . | . . . Highest Corruption . | . . . Average Corruption . | . . . Corruption Purged . | . . . Overload Shots . | . . . Overflow Damage 16 | . 8 8 Projectiles . | . . . Explosions 16 | . 8 8 Melee . | . . . Knockbacks . | . . . Impact . | . . . Kinetic . | . . . Secondary . | . . . Self-Inflicted Damage 45 | . 24 21 Shots 2 | . 1 1 Rammed . | . . . Targets Rammed . | . . . Kicked . | . . . Crushed . | . . . Highest Temperature 198 | . 198 41 Average Temperature 43 | . 49 17 Received Heat Transfer 459 | . 267 192 Siege Activations . | . . . Robots Corrupted . | . . . Combat Hostiles . | . . . Parts Fried . | . . . Impact Corruptions . | . . . Robots Melted . | . . . Combat Hostiles . | . . . Parts Melted 1 | . 1 . Heat Transferred 296 | . 296 . Parts Sabotaged . | . . . Parts Stolen . | . . . Parts Stripped . | . . . Power Chain Reactions . | . . . Missiles Intercepted . | . . . Alert | -11 -10 -10 ------- Run | Scr Mat Min Peak Influence 307 | . 307 224 Initial 119 | . . 119 Average 134 | . 141 179 Maximum Alert Level 1 | . 1 1 Low Security (%) 66 | 100 64 58 Level 1 33 | . 35 41 Level 2 . | . . . Level 3 . | . . . Level 4 . | . . . Level 5 . | . . . High Security . | . . . Max Security . | . . . Squads Dispatched 4 | . 4 . Investigation 1 | . 1 . Extermination . | . . . Reinforcement 3 | . 3 . Assault . | . . . Garrison . | . . . Intercept . | . . . Construction Impeded . | . . . Haulers Reinforced . | . . . Stealth | -11 -10 -10 --------- Run | Scr Mat Min Distress Signals 1 | . 1 . Communications Jammed . | . . . Distress Signals . | . . . Times Spotted 27 | . 22 5 Peak Tracking Total 7 | . 7 3 Tactical Retreats 3 | . 2 1 Traps | -11 -10 -10 ------- Run | Scr Mat Min Traps Triggered . | . . . Indirectly . | . . . Trap Hack Attempts . | . . . Triggered . | . . . Disarmed . | . . . Reprogrammed . | . . . Reused . | . . . Traps Extracted . | . . . Installed . | . . . Triggered . | . . . Machines | -11 -10 -10 ---------- Run | Scr Mat Min Machines Disabled 6 | . 2 4 Max in Single Turn 1 | . 1 1 Machines Sabotaged . | . . . Garrisons Compromised . | . . . Overloaded Fab Kills . | . . . Fab Network Shutdowns . | . . . Hacking | -11 -10 -10 --------- Run | Scr Mat Min Machines Accessed 1 | . 1 . Terminals . | . . . Fabricators . | . . . Repair Stations . | . . . Recycling Units 1 | . 1 . Scanalyzers . | . . . Garrison Access . | . . . Total Hacks 4 | . 4 . Successful 3 | . 3 . Failed 1 | . 1 . Catastrophic . | . . . Database Lockouts . | . . . Manual . | . . . Terminals . | . . . Fabricators . | . . . Repair Stations . | . . . Recycling Units 4 | . 4 . Scanalyzers . | . . . Garrison Access . | . . . Terminal Hacks . | . . . Fabricator Hacks . | . . . Repair Station Hacks . | . . . Recycling Unit Hacks 3 | . 3 . Recycle Component 2 | . 2 . Process 1 | . 1 . Scanalyzer . | . . . Garrison Access Hacks . | . . . Unauthorized Hacks . | . . . Terminals . | . . . Fabricators . | . . . Repair Stations . | . . . Recycling Units . | . . . Scanalyzers . | . . . Garrison Access . | . . . Data Cores Recovered . | . . . Used . | . . . Hacking Detections 1 | . 1 . Full Trace Events 1 | . 1 . Feedback Events . | . . . Feedback Blocked . | . . . Robot Schematics Acquired . | . . . Robots Built . | . . . Matter . | . . . Time . | . . . Total Robot Build Rating . | . . . Part Schematics Acquired . | . . . Parts Built . | . . . Matter . | . . . Time . | . . . Total Part Build Rating . | . . . Parts Repaired . | . . . Time . | . . . Parts Recycled 2 | . 2 . Recycled Matter 20 | . 20 . Retrieved Matter . | . . . Retrieved Components . | . . . Parts Scanalyzed . | . . . Part Schematics Acquired . | . . . Parts Damaged . | . . . Bothacking | -11 -10 -10 ------------ Run | Scr Mat Min Used RIF Installer . | . . . Robots Hacked . | . . . Non-combat . | . . . Combat . | . . . Robot Hacks Applied . | . . . Relay Couplers Released . | . . . Robots Rewired . | . . . Allies Hacked . | . . . Hacks Repelled . | . . . Allies | -11 -10 -10 -------- Run | Scr Mat Min Total Allies . | . . . Largest Group . | . . . Highest-Rated Group . | . . . Highest-Rated Ally . | . . . Total Orders . | . . . Ally Attacks . | . . . Total Damage . | . . . Kills . | . . . Allies Corrupted . | . . . Allies Melted . | . . . Intel | -11 -10 -10 ------- Run | Scr Mat Min Robot Analysis Total . | . . . Derelict Logs Recovered . | . . . Drone Launches . | . . . Drone Recoveries . | . . . Exploration | -11 -10 -10 ------------- Run | Scr Mat Min Turns Passed 579 | 66 362 151 Spaces Moved 225 | 37 138 50 Core 10 | 3 . 7 Treads 215 | 34 138 43 Legs . | . . . Wheels . | . . . Hover . | . . . Flight . | . . . Fastest Speed 50 | 50 160 160 Average Speed 163 | 152 160 182 Slowest Speed 350 | 160 160 350 Overloaded Moves . | . . . Propulsion Burnouts . | . . . Robots Hopped . | . . . Cave-ins Triggered . | . . . Exploration Rate (%) 19 | 5 33 19 Regions Visited 2 Branch Regions 1 Pre-discovered Areas . | . . . Known Exits Taken . | . . . Unknown Exits Taken 2 | 1 1 . Scrap Searched . | . . . Spaces Dug . | . . . Terrain Destroyed 83 | . 69 14 Melee . | . . . Projectile . | . . . AOE 83 | . 69 14 Terrain Rammed . | . . . Walls Destroyed . | . . . Machines Disabled . | . . . Actions | -11 -10 -10 --------- Run | Scr Mat Min Total 327 | 44 199 84 Wait 22 | . 13 9 Move 223 | 36 137 50 Hop . | . . . Pick Up 4 | 3 . 1 Fast Attach 8 | 5 3 . Attach 3 | . . 3 Detach 2 | . 1 1 Swap 2 | . 1 1 Drop . | . . . Fire 63 | . 44 19 Melee . | . . . Ram . | . . . Kick . | . . . Crush . | . . . Escape Stasis . | . . . Rewire . | . . . Trap . | . . . Miscellaneous . | . . . Route ------- -11/Scrapyard -10/Materials (discovered 2 exits: [*Min x2]) -10/Mines (discovered 1 exit: [*Mat]) History --------- Turn | Location | Event 6 | -11/Scrapyard | Discovered new exit (range 16) 67 | -11/Scrapyard | Entered Materials 85 | -10/Materials | Discovered new exit (range 16) 299 | -10/Materials | Discovered new exit (range 12) 317 | -10/Materials | Build established: Mutant 429 | -10/Materials | Entered Mines 493 | -10/Mines | Discovered new exit (range 7) 554 | -10/Mines | Core integrity fell below 50% 564 | -10/Mines | Core integrity fell below 20% 580 | -10/Mines | Destroyed by G-47 Trooper with Particle Gun Last Messages --------------- 00518_ K-01 Serf collects debris. 00525_ U-05 Engineer builds a Wall. 00530_ Core Extractor disabled. 00531_ Ion Engine destroyed. 00534_ U-05 Engineer lays Concrete. 00539_ Lgt. Treads destroyed. 00541_ Seismic Survey Station disabled. 00545_ Structural Scanner destroyed. 00549_ G-34 Mercenary IFF system glitched. 00551_ EM Pulse Gun destroyed. 00553_ Lgt. Assault Rifle destroyed. 00554_ Core Extractor disabled. 00555_ Pulverizer disabled. 00556_ The unstable cave ceiling collapses. 00559_ R-06 Scavenger collects Wheel. 00561_ Grenade Launcher destroyed. 00563_ R-06 Scavenger collects Welding Torch. 00573_ U-05 Engineer builds a Wall. 00577_ U-05 Engineer lays Concrete. 00580_ U-05 Engineer builds a Wall. Map ----- +----------------------------------------------------+ | ???????????????????????????????????????? | | ???????????????????????????????????????? | | ???????????????????????????????????????? | | ???????????????????????????????????????? | | ???????????????????????????????????????? | | ???????????????????????????????????????? | | ???????????????????????????????????????? | | ???????????????????????????????????????? | | ???????????????????????????????????????? | | ???????????????????????????????????????? | | ???????????????????????????????????????? | | ???????????????????????????????????????? | | ???????????????????????????????????????? | | ??????????#???????????????????????? ??? | | ?????????? ??????????????????????? #?? | | ??????????"""?????????????????????? ?? | | ???????"" """?????????????????????? #?? | | ????????" ""?????????????????????? #?? | | ????????? ??????????????????????? ### | | ?????????# #?????????????????????## # | | ????###### ########?????????????? | | ???## #?????????????? | | ???# """ """ < #??????????????# # | | ???# " """ #?????????????## # | | ???## """ #????????????## # | | ???# "" @ #####????????# """ # | | ???## g ## ########## """ | | ???##u " """ "* | """ | | ???## "" """ "" = | | ????# """ """ """ ############## | | ????# """ """ #####???????## ## | | ????# #??????????## ##? | | ????###############?????????## #?? | | ???????????????????????????## ##? | | ???????????????????????????# ## | | ???????????????????????????# # | | ???????????????????????????## # | | ????????????????????????????#### # | | ???????????????????????????????#### # | | ??????????????????????????????????## | | ???????????????????????????????????? | | ???????????????????????????????????? | | ????????????????????????????????????# | | ?????????????????????????????????????### | | ???????????????????????????????????????? | | | | | | | | | | | +----------------------------------------------------+ Best States ------------- Heat Dissipation 25 Energy Generation 10 Energy Capacity 250 Matter Stores 230 Matter Capacity 300 Sight Range 16 Terrain Scan Density 10 Evasion (%) 40 Recoil Reduction 2 Item Schematics ----------------- None Robot Schematics ------------------ None Fabricated ------------ Nothing Alien Tech Used ----------------- None Achievements -------------- None Challenges ------------ None Game ------ Seed PrecisionDisruptionArray Manual? 0 Play Time 00:08:42 Cumulative 12.4 hours Start 2020.10.27 @ 21:01:41 End 2020.10.27 @ 21:08:45 Sessions 1 Manual Loads 0 Difficulty Rogue Special Mode None Game No. 17 Rogue 17 Adventurer 0 Explorer 0 Win Type - Total 0 Types 0/0/0/0/0/0/0/0/0 Lore% 19 Gallery% 19 Achievement% 17 Wizard Run 0 Options --------- ASCII 0 Keyboard 0 Movement Mouse Keybinds 0 Fullscreen 2 Font 18/SmallcapsGlow Map View 76x50 Tactical HUD 1 Map Filters NONE Filters NONE Steam X RUN: 702b6c5a-d1b9-4d2d-9bcd-bdf5916d9696